[Event "*** Titled Tuesday Blitz"]
[Site "Chess.com"]
[Date "2019.10.01"]
[Round "1"]
[White "MarcoRiehle"]
[Black "Nightlord1"]
[Result "0-1"]
[WhiteElo "2589"]
[BlackElo "2223"]
[TimeControl "180+2"]
[EndTime "13:09:08 PDT"]
[Termination "Nightlord1 won on time"]

1. e4 {[%clk 0:02:56.4]} 1... e5 {[%clk 0:03:00.5]} 2. Nf3 {[%clk 0:02:56.6]}
2... d5 {[%clk 0:03:01.6]} 3. Nxe5 {[%clk 0:02:56.9]} 3... dxe4 {[%clk
0:02:58.3]} 4. d4 {[%clk 0:02:56.2]} 4... Bd6 {[%clk 0:02:58.9]} 5. Nc4 {[%clk
0:02:49]} 5... Nf6 {[%clk 0:03:00.1]} 6. Nc3 {[%clk 0:02:48.6]} 6... O-O {[%clk
0:03:00.8]} 7. Bg5 {[%clk 0:02:46.9]} 7... Re8 {[%clk 0:03:02]} 8. Be2 {[%clk
0:02:40.9]} 8... Nc6 {[%clk 0:03:02.4]} 9. O-O {[%clk 0:02:39.4]} 9... Nxd4
{[%clk 0:03:01.9]} 10. Nxd6 {[%clk 0:02:25.9]} 10... Qxd6 {[%clk 0:03:02.4]} 11.
Re1 {[%clk 0:02:06.4]} 11... Nxe2+ {[%clk 0:02:57.4]} 12. Qxe2 {[%clk
0:02:08.3]} 12... Bf5 {[%clk 0:02:53.4]} 13. Rad1 {[%clk 0:02:06.8]} 13... Qe6
{[%clk 0:02:51.2]} 14. Bxf6 {[%clk 0:02:01]} 14... Qxf6 {[%clk 0:02:50.2]} 15.
Qb5 {[%clk 0:02:02.3]} 15... c6 {[%clk 0:02:47.7]} 16. Qxb7 {[%clk 0:01:53.5]}
16... Reb8 {[%clk 0:02:49.1]} 17. Qc7 {[%clk 0:01:47.2]} 17... Rxb2 {[%clk
0:02:50.3]} 18. Nxe4 {[%clk 0:01:43.2]} 18... Bxe4 {[%clk 0:02:45.3]} 19. Rxe4
{[%clk 0:01:45.1]} 19... Rxa2 {[%clk 0:02:47.1]} 20. h4 {[%clk 0:01:24.6]} 20...
h6 {[%clk 0:02:47.8]} 21. Rf4 {[%clk 0:01:18.6]} 21... Ra1 {[%clk 0:02:41.2]}
22. Rxf6 {[%clk 0:01:16.5]} 22... Rxd1+ {[%clk 0:02:42.2]} 23. Kh2 {[%clk
0:01:17.1]} 23... gxf6 {[%clk 0:02:43.4]} 24. Qxc6 {[%clk 0:01:17.6]} 24... Rdd8
{[%clk 0:02:27]} 25. Qxf6 {[%clk 0:01:16.6]} 25... a5 {[%clk 0:02:27.6]} 26.
Qxh6 {[%clk 0:01:15.6]} 26... a4 {[%clk 0:02:26.3]} 27. Qg5+ {[%clk 0:01:15.7]}
27... Kf8 {[%clk 0:02:21.3]} 28. Qc5+ {[%clk 0:01:14.1]} 28... Kg8 {[%clk
0:02:19.3]} 29. Qa3 {[%clk 0:01:15.4]} 29... Rdc8 {[%clk 0:02:16.6]} 30. h5
{[%clk 0:01:06.2]} 30... Ra6 {[%clk 0:02:11.1]} 31. Qg3+ {[%clk 0:01:03.3]}
31... Kf8 {[%clk 0:02:03.8]} 32. Qd3 {[%clk 0:00:48.8]} 32... Rcc6 {[%clk
0:02:01.4]} 33. Qa3+ {[%clk 0:00:37.9]} 33... Kg8 {[%clk 0:01:58.6]} 34. g4
{[%clk 0:00:36.8]} 34... Rxc2 {[%clk 0:01:52.7]} 35. Kg3 {[%clk 0:00:32.1]}
35... Rc4 {[%clk 0:01:43.6]} 36. g5 {[%clk 0:00:24.2]} 36... Ra5 {[%clk
0:01:37.9]} 37. f4 {[%clk 0:00:24]} 37... Rf5 {[%clk 0:01:33.9]} 38. Qe3 {[%clk
0:00:18.8]} 38... Rcxf4 {[%clk 0:01:22.2]} 39. Qe8+ {[%clk 0:00:18.9]} 39... Kg7
{[%clk 0:01:21]} 40. h6+ {[%clk 0:00:19.6]} 40... Kg6 {[%clk 0:01:07.8]} 41.
Qc6+ {[%clk 0:00:10.1]} 41... Kxg5 {[%clk 0:01:06.2]} 42. h7 {[%clk 0:00:10.9]}
42... Rg4+ {[%clk 0:01:02.3]} 43. Kh3 {[%clk 0:00:10.8]} 43... Rh4+ {[%clk
0:01:01.4]} 44. Kg3 {[%clk 0:00:11.9]} 44... Rxh7 {[%clk 0:00:58.9]} 45. Qc1+
{[%clk 0:00:12.4]} 45... Kg6 {[%clk 0:00:59.8]} 46. Qc6+ {[%clk 0:00:13]} 46...
f6 {[%clk 0:01:00.2]} 47. Qe8+ {[%clk 0:00:13.2]} 47... Kg5 {[%clk 0:00:41.1]}
48. Qxa4 {[%clk 0:00:14.1]} 48... Rg7 {[%clk 0:00:39.9]} 49. Kh3 {[%clk
0:00:12.2]} 49... Kh6 {[%clk 0:00:38.8]} 50. Kh2 {[%clk 0:00:02.7]} 50... Rh5+
{[%clk 0:00:38.2]} 0-1

[Event "*** Titled Tuesday Blitz"]
[Site "Chess.com"]
[Date "2019.10.01"]
[Round "1"]
[White "Vuk2000"]
[Black "NiranjanNavalgund"]
[Result "1-0"]
[WhiteElo "2817"]
[BlackElo "2421"]
[TimeControl "180+2"]
[EndTime "13:09:20 PDT"]
[Termination "Vuk2000 won by resignation"]

1. d4 {[%clk 0:03:00.6]} 1... Nf6 {[%clk 0:03:00.5]} 2. Bg5 {[%clk 0:03:01.3]}
2... Ne4 {[%clk 0:03:00.8]} 3. Bf4 {[%clk 0:03:02.6]} 3... d5 {[%clk 0:03:01.4]}
4. e3 {[%clk 0:03:03.4]} 4... c5 {[%clk 0:03:01.7]} 5. Bd3 {[%clk 0:03:03.5]}
5... Nf6 {[%clk 0:03:02.4]} 6. c3 {[%clk 0:02:59.8]} 6... Bg4 {[%clk 0:02:57.6]}
7. Qb3 {[%clk 0:02:51.9]} 7... Qb6 {[%clk 0:02:41.1]} 8. dxc5 {[%clk 0:02:45.7]}
8... Qxb3 {[%clk 0:02:30.1]} 9. axb3 {[%clk 0:02:47.6]} 9... Nfd7 {[%clk
0:02:31.2]} 10. b4 {[%clk 0:02:43.9]} 10... e5 {[%clk 0:02:31.8]} 11. Bg3 {[%clk
0:02:45]} 11... Be7 {[%clk 0:02:27.4]} 12. Bb5 {[%clk 0:02:37.3]} 12... O-O
{[%clk 0:02:26.2]} 13. Nd2 {[%clk 0:02:37.8]} 13... f5 {[%clk 0:02:19.9]} 14. f4
{[%clk 0:02:13.9]} 14... exf4 {[%clk 0:02:13.8]} 15. exf4 {[%clk 0:02:05.8]}
15... Bf6 {[%clk 0:01:52.9]} 16. Ngf3 {[%clk 0:02:03.5]} 16... Nc6 {[%clk
0:01:47.6]} 17. O-O {[%clk 0:01:56.5]} 17... Rfe8 {[%clk 0:01:45.5]} 18. Bf2
{[%clk 0:01:42.2]} 18... Bh5 {[%clk 0:01:38.9]} 19. Bd3 {[%clk 0:01:42.2]} 19...
Bg6 {[%clk 0:01:33.4]} 20. Nb3 {[%clk 0:01:14.9]} 20... a6 {[%clk 0:01:33.1]}
21. Nfd4 {[%clk 0:01:06.6]} 21... Nxd4 {[%clk 0:01:21.2]} 22. Nxd4 {[%clk
0:01:07.5]} 22... Bxd4 {[%clk 0:01:12.9]} 23. Bxd4 {[%clk 0:01:09.4]} 23... Nf6
{[%clk 0:01:13.9]} 24. b5 {[%clk 0:01:10.7]} 24... axb5 {[%clk 0:01:12.5]} 25.
Bxb5 {[%clk 0:01:11.1]} 25... Rec8 {[%clk 0:01:08.8]} 26. b4 {[%clk 0:00:58.2]}
26... Ne4 {[%clk 0:01:09]} 27. Bd7 {[%clk 0:00:58.9]} 27... Rd8 {[%clk
0:01:10.1]} 28. Be6+ {[%clk 0:00:57.7]} 28... Bf7 {[%clk 0:01:11.3]} 29. Bxf5
{[%clk 0:00:55.4]} 29... g6 {[%clk 0:01:05.6]} 30. Bg4 {[%clk 0:00:47.2]} 30...
Re8 {[%clk 0:01:01.3]} 31. h4 {[%clk 0:00:43.3]} 31... Nd2 {[%clk 0:01:01.1]}
32. Rfd1 {[%clk 0:00:43.3]} 32... Nb3 {[%clk 0:00:57]} 33. Rxa8 {[%clk
0:00:43.9]} 33... Rxa8 {[%clk 0:00:58.9]} 34. Be5 {[%clk 0:00:43.4]} 34... Ra2
{[%clk 0:00:57.5]} 35. Bf3 {[%clk 0:00:41]} 35... Nd2 {[%clk 0:00:58.8]} 36. Bg4
{[%clk 0:00:35.7]} 36... h5 {[%clk 0:00:58.9]} 37. Bc8 {[%clk 0:00:36.3]} 37...
Nc4 {[%clk 0:00:58.3]} 38. Bd4 {[%clk 0:00:33.5]} 38... Nb2 {[%clk 0:00:46.2]}
39. Rd2 {[%clk 0:00:29.8]} 39... Ra1+ {[%clk 0:00:46.6]} 40. Kh2 {[%clk
0:00:31.1]} 40... Nc4 {[%clk 0:00:48.2]} 41. Re2 {[%clk 0:00:32.4]} 41... Ra7
{[%clk 0:00:46.5]} 42. c6 {[%clk 0:00:33.4]} 42... b6 {[%clk 0:00:47.8]} 43. Bb7
{[%clk 0:00:34.5]} 43... Nd6 {[%clk 0:00:46.8]} 44. Bxb6 {[%clk 0:00:35.4]}
44... Ra3 {[%clk 0:00:47.3]} 45. Bc5 {[%clk 0:00:35.5]} 45... Nb5 {[%clk
0:00:46.4]} 46. Re7 {[%clk 0:00:34.9]} 46... Rxc3 {[%clk 0:00:46.1]} 47. c7
{[%clk 0:00:36.1]} 47... Nxc7 {[%clk 0:00:46]} 48. Rxc7 {[%clk 0:00:37.1]} 48...
d4 {[%clk 0:00:47.4]} 49. Rd7 {[%clk 0:00:37.3]} 49... d3 {[%clk 0:00:47.9]} 50.
Bd5 {[%clk 0:00:37.8]} 50... Bxd5 {[%clk 0:00:46.2]} 51. Rxd5 {[%clk 0:00:39.7]}
51... Kf7 {[%clk 0:00:47.5]} 52. Rd6 {[%clk 0:00:39.6]} 52... Rb3 {[%clk
0:00:46.4]} 53. Kg1 {[%clk 0:00:40.4]} 53... Rb1+ {[%clk 0:00:44.5]} 54. Kf2
{[%clk 0:00:41.5]} 54... Rb2+ {[%clk 0:00:45.8]} 55. Kf3 {[%clk 0:00:41.4]}
55... Rb3 {[%clk 0:00:45.3]} 56. Ke4 {[%clk 0:00:39.9]} 56... Rb2 {[%clk
0:00:45.2]} 57. Rxd3 {[%clk 0:00:39.1]} 57... Rxg2 {[%clk 0:00:46.2]} 58. Rb3
{[%clk 0:00:40.4]} 58... Rg4 {[%clk 0:00:45.8]} 59. b5 {[%clk 0:00:40.9]} 59...
g5 {[%clk 0:00:47.2]} 60. hxg5 {[%clk 0:00:41.3]} 60... h4 {[%clk 0:00:48.6]}
61. b6 {[%clk 0:00:42.3]} 61... Rg2 {[%clk 0:00:46.7]} 62. b7 {[%clk 0:00:42.8]}
1-0

[Event "*** Titled Tuesday Blitz"]
[Site "Chess.com"]
[Date "2019.10.01"]
[Round "1"]
[White "przemekpiotrowski"]
[Black "Durarbayli"]
[Result "0-1"]
[WhiteElo "2414"]
[BlackElo "2807"]
[TimeControl "180+2"]
[EndTime "13:09:30 PDT"]
[Termination "Durarbayli won by checkmate"]

1. d4 {[%clk 0:03:01.7]} 1... Nf6 {[%clk 0:03:00.4]} 2. Nf3 {[%clk 0:03:03.2]}
2... c5 {[%clk 0:02:56.8]} 3. c4 {[%clk 0:02:58.8]} 3... cxd4 {[%clk 0:02:56.1]}
4. Nxd4 {[%clk 0:03:00.7]} 4... b6 {[%clk 0:02:57.6]} 5. Nc3 {[%clk 0:03:00.2]}
5... Bb7 {[%clk 0:02:58.7]} 6. Bg5 {[%clk 0:02:58.4]} 6... e6 {[%clk 0:02:55.8]}
7. Ndb5 {[%clk 0:02:40.9]} 7... Na6 {[%clk 0:02:38]} 8. Nd6+ {[%clk 0:02:30.5]}
8... Bxd6 {[%clk 0:02:38.3]} 9. Qxd6 {[%clk 0:02:32.4]} 9... Rc8 {[%clk
0:02:24.8]} 10. e3 {[%clk 0:02:33.2]} 10... h6 {[%clk 0:02:18.4]} 11. Bh4 {[%clk
0:02:16.9]} 11... Nc5 {[%clk 0:02:04.3]} 12. Rd1 {[%clk 0:01:42]} 12... Rc6
{[%clk 0:01:28.3]} 13. Qd4 {[%clk 0:01:25.5]} 13... d6 {[%clk 0:01:25.6]} 14. b4
{[%clk 0:01:01.2]} 14... e5 {[%clk 0:01:03.1]} 15. Qd2 {[%clk 0:01:01.6]} 15...
Nce4 {[%clk 0:00:56.5]} 16. Nxe4 {[%clk 0:00:57]} 16... Nxe4 {[%clk 0:00:58.4]}
17. Bxd8 {[%clk 0:00:55.4]} 17... Nxd2 {[%clk 0:00:59.4]} 18. Rxd2 {[%clk
0:00:54.7]} 18... Kxd8 {[%clk 0:01:00.8]} 19. b5 {[%clk 0:00:55.8]} 19... Rc7
{[%clk 0:00:50.4]} 20. Rxd6+ {[%clk 0:00:56.9]} 20... Ke7 {[%clk 0:00:51.8]} 21.
Rd2 {[%clk 0:00:41.8]} 21... a6 {[%clk 0:00:50.9]} 22. a4 {[%clk 0:00:34.4]}
22... axb5 {[%clk 0:00:51.4]} 23. axb5 {[%clk 0:00:36.3]} 23... Ra8 {[%clk
0:00:51.8]} 24. Be2 {[%clk 0:00:36.5]} 24... Ra1+ {[%clk 0:00:46]} 25. Rd1
{[%clk 0:00:37.2]} 25... Ra2 {[%clk 0:00:46.7]} 26. Rd2 {[%clk 0:00:37]} 26...
Ra1+ {[%clk 0:00:38.6]} 27. Rd1 {[%clk 0:00:38]} 27... Rxd1+ {[%clk 0:00:11.4]}
28. Kxd1 {[%clk 0:00:39.9]} 28... Bxg2 {[%clk 0:00:12.3]} 29. Rg1 {[%clk
0:00:40.5]} 29... Be4 {[%clk 0:00:13]} 30. Rxg7 {[%clk 0:00:41.3]} 30... Kf8
{[%clk 0:00:11.6]} 31. Rg1 {[%clk 0:00:38.2]} 31... Ra7 {[%clk 0:00:12.1]} 32.
Rg4 {[%clk 0:00:32.9]} 32... Ra1+ {[%clk 0:00:11.6]} 33. Kd2 {[%clk 0:00:33.9]}
33... Ra2+ {[%clk 0:00:13.2]} 34. Ke1 {[%clk 0:00:32]} 34... Bf5 {[%clk
0:00:12.2]} 35. Rh4 {[%clk 0:00:32.3]} 35... Kg7 {[%clk 0:00:13]} 36. e4 {[%clk
0:00:32.7]} 36... Be6 {[%clk 0:00:14.1]} 37. Kd1 {[%clk 0:00:30.9]} 37... Kg6
{[%clk 0:00:10.3]} 38. f4 {[%clk 0:00:30.2]} 38... Ra1+ {[%clk 0:00:10.9]} 39.
Kd2 {[%clk 0:00:30.7]} 39... Ra2+ {[%clk 0:00:12.8]} 40. Ke3 {[%clk 0:00:31.9]}
40... Ra3+ {[%clk 0:00:13.4]} 41. Kd2 {[%clk 0:00:33.1]} 41... Ra2+ {[%clk
0:00:13.9]} 42. Ke3 {[%clk 0:00:33.9]} 42... Ra3+ {[%clk 0:00:15.3]} 43. Kf2
{[%clk 0:00:31]} 43... exf4 {[%clk 0:00:15.4]} 44. Rxf4 {[%clk 0:00:32.9]} 44...
Kg5 {[%clk 0:00:16.9]} 45. Rf3 {[%clk 0:00:32]} 45... Ra2 {[%clk 0:00:18.5]} 46.
Rc3 {[%clk 0:00:32.4]} 46... Kf4 {[%clk 0:00:19.9]} 47. c5 {[%clk 0:00:32.7]}
47... bxc5 {[%clk 0:00:21.4]} 48. Rxc5 {[%clk 0:00:34.5]} 48... Rb2 {[%clk
0:00:22.3]} 49. e5 {[%clk 0:00:33.8]} 49... h5 {[%clk 0:00:20.3]} 50. Ke1 {[%clk
0:00:23.9]} 50... h4 {[%clk 0:00:20]} 51. Bc4 {[%clk 0:00:22.8]} 51... Ke3
{[%clk 0:00:16.9]} 52. Kd1 {[%clk 0:00:18.8]} 52... Bf5 {[%clk 0:00:17.8]} 53.
e6 {[%clk 0:00:17.8]} 53... Rb1# {[%clk 0:00:18.3]} 0-1

[Event "*** Titled Tuesday Blitz"]
[Site "Chess.com"]
[Date "2019.10.01"]
[Round "1"]
[White "jorquerino"]
[Black "Zubrrr"]
[Result "0-1"]
[WhiteElo "2345"]
[BlackElo "2703"]
[TimeControl "180+2"]
[EndTime "13:09:32 PDT"]
[Termination "Zubrrr won by resignation"]

1. e4 {[%clk 0:03:01.8]} 1... c5 {[%clk 0:02:59]} 2. Nc3 {[%clk 0:03:02.4]} 2...
d6 {[%clk 0:02:41.8]} 3. g3 {[%clk 0:03:02.7]} 3... g6 {[%clk 0:02:42.8]} 4. d3
{[%clk 0:03:03.1]} 4... Bg7 {[%clk 0:02:44.1]} 5. Bg2 {[%clk 0:03:02.8]} 5...
Nc6 {[%clk 0:02:45.3]} 6. Be3 {[%clk 0:03:03.3]} 6... e6 {[%clk 0:02:45.5]} 7.
Qd2 {[%clk 0:03:03.3]} 7... Nge7 {[%clk 0:02:46.9]} 8. Bh6 {[%clk 0:03:04]} 8...
O-O {[%clk 0:02:43.1]} 9. h4 {[%clk 0:03:04.7]} 9... f6 {[%clk 0:02:39.9]} 10.
Bxg7 {[%clk 0:03:02.2]} 10... Kxg7 {[%clk 0:02:40.9]} 11. f4 {[%clk 0:03:03.1]}
11... h6 {[%clk 0:02:36.2]} 12. g4 {[%clk 0:03:03.5]} 12... Nd4 {[%clk
0:02:33.6]} 13. Nf3 {[%clk 0:02:55.1]} 13... Nec6 {[%clk 0:02:31.5]} 14. Nxd4
{[%clk 0:02:45.5]} 14... Nxd4 {[%clk 0:02:31.7]} 15. Ne2 {[%clk 0:02:46.1]}
15... Nxe2 {[%clk 0:02:30.2]} 16. Qxe2 {[%clk 0:02:48]} 16... Qa5+ {[%clk
0:02:15.8]} 17. c3 {[%clk 0:02:41.7]} 17... Bd7 {[%clk 0:02:16.5]} 18. O-O
{[%clk 0:02:39.3]} 18... e5 {[%clk 0:01:58.1]} 19. g5 {[%clk 0:01:31.3]} 19...
fxg5 {[%clk 0:01:45]} 20. fxg5 {[%clk 0:01:22.1]} 20... h5 {[%clk 0:01:42]} 21.
Rxf8 {[%clk 0:01:09.8]} 21... Rxf8 {[%clk 0:01:42.6]} 22. Rf1 {[%clk 0:01:07.5]}
22... Qxa2 {[%clk 0:01:40.1]} 23. Rxf8 {[%clk 0:01:08.1]} 23... Kxf8 {[%clk
0:01:40.4]} 24. Qf2+ {[%clk 0:01:07.8]} 24... Qf7 {[%clk 0:01:40.8]} 25. Qe3
{[%clk 0:01:00.8]} 25... a5 {[%clk 0:01:37.2]} 26. d4 {[%clk 0:01:01.4]} 26...
b6 {[%clk 0:01:20.8]} 27. dxe5 {[%clk 0:00:52.9]} 27... dxe5 {[%clk 0:01:21.5]}
28. Qd3 {[%clk 0:00:48.5]} 28... Ke7 {[%clk 0:01:22.2]} 29. Qa6 {[%clk
0:00:48.6]} 29... Qb3 {[%clk 0:01:17]} 30. Qe2 {[%clk 0:00:34.5]} 30... a4
{[%clk 0:01:16.8]} 31. Qf2 {[%clk 0:00:33.9]} 31... Qd1+ {[%clk 0:01:04]} 32.
Kh2 {[%clk 0:00:33.8]} 32... Qd6 {[%clk 0:01:04.9]} 33. Bh3 {[%clk 0:00:30]}
33... Bxh3 {[%clk 0:01:02.8]} 34. Kxh3 {[%clk 0:00:31.2]} 34... Qd3+ {[%clk
0:00:56.5]} 35. Kh2 {[%clk 0:00:29.5]} 35... Qxe4 {[%clk 0:00:30.9]} 36. Qf6+
{[%clk 0:00:24.5]} 36... Kd7 {[%clk 0:00:32.4]} 37. Qxb6 {[%clk 0:00:19.3]}
37... Qxh4+ {[%clk 0:00:32.4]} 38. Kg2 {[%clk 0:00:18.1]} 38... Qxg5+ {[%clk
0:00:33.9]} 39. Kh2 {[%clk 0:00:19.1]} 39... Qf4+ {[%clk 0:00:31.3]} 40. Kh1
{[%clk 0:00:18.8]} 40... Qe4+ {[%clk 0:00:28]} 41. Kh2 {[%clk 0:00:18.1]} 41...
Qc6 {[%clk 0:00:27.7]} 42. Qb8 {[%clk 0:00:16.3]} 42... e4 {[%clk 0:00:26.1]}
43. Qg8 {[%clk 0:00:14.6]} 43... Qe6 {[%clk 0:00:24.5]} 44. Qg7+ {[%clk
0:00:13.6]} 44... Kc6 {[%clk 0:00:25.5]} 45. Qa7 {[%clk 0:00:11.4]} 45... Kb5
{[%clk 0:00:23.3]} 46. Qb7+ {[%clk 0:00:11.6]} 46... Kc4 {[%clk 0:00:24.3]} 47.
Qa6+ {[%clk 0:00:12.1]} 47... Qxa6 {[%clk 0:00:25]} 0-1

[Event "*** Titled Tuesday Blitz"]
[Site "Chess.com"]
[Date "2019.10.01"]
[Round "1"]
[White "Darhild"]
[Black "GremioPrudente"]
[Result "1-0"]
[WhiteElo "2633"]
[BlackElo "2272"]
[TimeControl "180+2"]
[EndTime "13:09:36 PDT"]
[Termination "Darhild won on time"]

1. e4 {[%clk 0:03:01.9]} 1... e6 {[%clk 0:03:00.5]} 2. d4 {[%clk 0:03:02.6]}
2... d5 {[%clk 0:03:01.2]} 3. Nc3 {[%clk 0:03:03.9]} 3... Nf6 {[%clk 0:03:01.6]}
4. e5 {[%clk 0:03:05.2]} 4... Nfd7 {[%clk 0:03:02.5]} 5. f4 {[%clk 0:03:06.4]}
5... c5 {[%clk 0:03:04]} 6. Nf3 {[%clk 0:03:07.7]} 6... Nc6 {[%clk 0:03:05.5]}
7. Be3 {[%clk 0:03:09]} 7... cxd4 {[%clk 0:03:07.2]} 8. Nxd4 {[%clk 0:03:09.7]}
8... Bc5 {[%clk 0:03:08.7]} 9. Qd2 {[%clk 0:03:00.2]} 9... O-O {[%clk
0:03:08.9]} 10. O-O-O {[%clk 0:03:00.3]} 10... a6 {[%clk 0:03:06.5]} 11. Kb1
{[%clk 0:02:45.4]} 11... Nxd4 {[%clk 0:02:46.3]} 12. Bxd4 {[%clk 0:02:46.4]}
12... b5 {[%clk 0:02:38.3]} 13. f5 {[%clk 0:01:40.5]} 13... b4 {[%clk
0:02:31.6]} 14. Ne2 {[%clk 0:01:18.1]} 14... Bxd4 {[%clk 0:02:18.8]} 15. Nxd4
{[%clk 0:01:01]} 15... Nxe5 {[%clk 0:02:13]} 16. fxe6 {[%clk 0:00:57.4]} 16...
fxe6 {[%clk 0:02:12.6]} 17. Qxb4 {[%clk 0:00:55.1]} 17... Qc7 {[%clk 0:02:07.6]}
18. Nb3 {[%clk 0:00:39.1]} 18... Bb7 {[%clk 0:02:01.1]} 19. Qc5 {[%clk
0:00:33.5]} 19... Qd7 {[%clk 0:01:34]} 20. Be2 {[%clk 0:00:19.8]} 20... Rac8
{[%clk 0:01:26.9]} 21. Qe3 {[%clk 0:00:20.8]} 21... Qc7 {[%clk 0:01:17.9]} 22.
Rc1 {[%clk 0:00:13.7]} 22... a5 {[%clk 0:01:12]} 23. Rhe1 {[%clk 0:00:13.8]}
23... Rf6 {[%clk 0:01:06.8]} 24. Bb5 {[%clk 0:00:10.8]} 24... Nc4 {[%clk
0:01:02]} 25. Bxc4 {[%clk 0:00:07.4]} 25... dxc4 {[%clk 0:01:02.7]} 26. Nd4
{[%clk 0:00:08.6]} 26... Bd5 {[%clk 0:00:51.8]} 27. Qe5 {[%clk 0:00:08.4]} 27...
c3 {[%clk 0:00:43.5]} 28. Qxc7 {[%clk 0:00:08.9]} 28... Rxc7 {[%clk 0:00:45]}
29. bxc3 {[%clk 0:00:10.4]} 29... Rxc3 {[%clk 0:00:30.6]} 30. Re2 {[%clk
0:00:11.8]} 30... Kf7 {[%clk 0:00:22.3]} 31. Rce1 {[%clk 0:00:10.9]} 31... Rc4
{[%clk 0:00:21.5]} 32. Rd2 {[%clk 0:00:07.4]} 32... g6 {[%clk 0:00:20.2]} 33. a3
{[%clk 0:00:08.6]} 33... Rf4 {[%clk 0:00:17.2]} 34. Nb5 {[%clk 0:00:07.6]} 34...
Rc6 {[%clk 0:00:10.9]} 35. Nd4 {[%clk 0:00:06.7]} 35... Rc4 {[%clk 0:00:11]} 36.
Nb3 {[%clk 0:00:07]} 36... Rc3 {[%clk 0:00:09.6]} 37. Kb2 {[%clk 0:00:07.5]}
37... Rfc4 {[%clk 0:00:07.5]} 38. Nxa5 {[%clk 0:00:07.4]} 38... Rc5 {[%clk
0:00:06.3]} 39. Nb3 {[%clk 0:00:08.1]} 39... Bxb3 {[%clk 0:00:07.1]} 40. cxb3
{[%clk 0:00:10]} 40... Rc6 {[%clk 0:00:06.2]} 41. Ree2 {[%clk 0:00:10.6]} 41...
Rc1 {[%clk 0:00:06.5]} 42. Rc2 {[%clk 0:00:11.5]} 42... R6xc2+ {[%clk
0:00:06.4]} 43. Rxc2 {[%clk 0:00:13.4]} 43... Rg1 {[%clk 0:00:07.8]} 44. a4
{[%clk 0:00:13.6]} 44... Kf6 {[%clk 0:00:05.6]} 45. a5 {[%clk 0:00:15]} 45...
Rh1 {[%clk 0:00:07.5]} 46. h3 {[%clk 0:00:15.6]} 46... Rd1 {[%clk 0:00:05.5]}
47. b4 {[%clk 0:00:16.2]} 47... Rd4 {[%clk 0:00:06]} 48. Kb3 {[%clk 0:00:17.1]}
1-0

[Event "*** Titled Tuesday Blitz"]
[Site "Chess.com"]
[Date "2019.10.01"]
[Round "1"]
[White "Siemba"]
[Black "AliKa2810"]
[Result "1/2-1/2"]
[WhiteElo "2219"]
[BlackElo "2591"]
[TimeControl "180+2"]
[EndTime "13:10:27 PDT"]
[Termination "Game drawn by stalemate"]

1. e4 {[%clk 0:02:58.9]} 1... e6 {[%clk 0:03:00.8]} 2. d4 {[%clk 0:02:52.1]}
2... d5 {[%clk 0:03:01.3]} 3. Nc3 {[%clk 0:02:49.3]} 3... Bb4 {[%clk 0:03:01.1]}
4. e5 {[%clk 0:02:47.6]} 4... Ne7 {[%clk 0:03:01.5]} 5. a3 {[%clk 0:02:48.7]}
5... Bxc3+ {[%clk 0:03:02.7]} 6. bxc3 {[%clk 0:02:50.6]} 6... c5 {[%clk
0:03:04.1]} 7. Qg4 {[%clk 0:02:51.6]} 7... Kf8 {[%clk 0:03:05.4]} 8. Nf3 {[%clk
0:02:47.7]} 8... Qa5 {[%clk 0:03:04.8]} 9. Bd2 {[%clk 0:02:48.2]} 9... Qa4
{[%clk 0:03:05.6]} 10. Be2 {[%clk 0:02:45.4]} 10... Qxc2 {[%clk 0:03:00.5]} 11.
O-O {[%clk 0:02:46.4]} 11... b6 {[%clk 0:02:53.1]} 12. Rac1 {[%clk 0:02:45.3]}
12... Qf5 {[%clk 0:02:49.1]} 13. Qg3 {[%clk 0:02:45.6]} 13... Qg6 {[%clk
0:02:35.9]} 14. Qh3 {[%clk 0:02:41.4]} 14... Nf5 {[%clk 0:02:08.2]} 15. Bd3
{[%clk 0:02:39.8]} 15... Ba6 {[%clk 0:02:07.1]} 16. c4 {[%clk 0:02:35]} 16...
Bxc4 {[%clk 0:02:03.1]} 17. Rxc4 {[%clk 0:02:35.2]} 17... dxc4 {[%clk
0:01:58.7]} 18. Be4 {[%clk 0:02:36.2]} 18... Nc6 {[%clk 0:01:54.1]} 19. Bxc6
{[%clk 0:02:33.6]} 19... Rc8 {[%clk 0:01:30]} 20. Be4 {[%clk 0:02:30.8]} 20...
h5 {[%clk 0:01:11.3]} 21. Nh4 {[%clk 0:02:25.3]} 21... Qg4 {[%clk 0:01:08.8]}
22. Qxg4 {[%clk 0:02:25.9]} 22... hxg4 {[%clk 0:01:10.2]} 23. Nxf5 {[%clk
0:02:27.5]} 23... exf5 {[%clk 0:01:10.8]} 24. Bxf5 {[%clk 0:02:29.4]} 24... Rd8
{[%clk 0:01:12.2]} 25. Bc3 {[%clk 0:02:15.8]} 25... cxd4 {[%clk 0:01:12.1]} 26.
Bb4+ {[%clk 0:02:17]} 26... Kg8 {[%clk 0:01:03.1]} 27. Bxg4 {[%clk 0:02:18]}
27... d3 {[%clk 0:00:53.7]} 28. e6 {[%clk 0:02:10.8]} 28... Rd4 {[%clk
0:00:33.5]} 29. e7 {[%clk 0:02:01.4]} 29... Kh7 {[%clk 0:00:34.6]} 30. Bf3
{[%clk 0:01:59.8]} 30... a5 {[%clk 0:00:35.6]} 31. Bc3 {[%clk 0:02:00.5]} 31...
Rd7 {[%clk 0:00:36.5]} 32. Be4+ {[%clk 0:01:39.4]} 32... Kh6 {[%clk 0:00:34.5]}
33. e8=Q {[%clk 0:01:30.7]} 33... Rxe8 {[%clk 0:00:34.7]} 34. Bc6 {[%clk
0:01:32.3]} 34... Red8 {[%clk 0:00:28.1]} 35. Bxd7 {[%clk 0:01:33.3]} 35... Rxd7
{[%clk 0:00:29.5]} 36. Rb1 {[%clk 0:01:34.9]} 36... Rd6 {[%clk 0:00:25.1]} 37.
Kf1 {[%clk 0:01:22.8]} 37... Kg6 {[%clk 0:00:25.2]} 38. Be5 {[%clk 0:01:23.8]}
38... Rd5 {[%clk 0:00:24.8]} 39. Bc3 {[%clk 0:01:12.7]} 39... Rd6 {[%clk
0:00:25.3]} 40. Bd2 {[%clk 0:00:52.3]} 40... Kf5 {[%clk 0:00:24]} 41. f3 {[%clk
0:00:50.1]} 41... Rc6 {[%clk 0:00:18.3]} 42. Bc3 {[%clk 0:00:48]} 42... f6
{[%clk 0:00:17.5]} 43. Kf2 {[%clk 0:00:45.6]} 43... Ke6 {[%clk 0:00:17.6]} 44.
Ke3 {[%clk 0:00:46.1]} 44... Kd5 {[%clk 0:00:18.7]} 45. Rb5+ {[%clk 0:00:46.2]}
45... Rc5 {[%clk 0:00:18.6]} 46. Rxb6 {[%clk 0:00:43.5]} 46... a4 {[%clk
0:00:12.6]} 47. f4 {[%clk 0:00:30.8]} 47... Rc8 {[%clk 0:00:13.2]} 48. Rb5+
{[%clk 0:00:31.7]} 48... Kc6 {[%clk 0:00:13.8]} 49. Rb4 {[%clk 0:00:29.8]} 49...
Re8+ {[%clk 0:00:15]} 50. Kf3 {[%clk 0:00:30.2]} 50... Kd5 {[%clk 0:00:15.9]}
51. Rxa4 {[%clk 0:00:30.2]} 51... Re2 {[%clk 0:00:17.1]} 52. Ra5+ {[%clk
0:00:31.2]} 52... Kc6 {[%clk 0:00:17.5]} 53. Ra8 {[%clk 0:00:29.7]} 53... Rc2
{[%clk 0:00:17.7]} 54. Rc8+ {[%clk 0:00:26.5]} 54... Kd5 {[%clk 0:00:09.5]} 55.
Bb4 {[%clk 0:00:25]} 55... d2 {[%clk 0:00:10.1]} 56. Rd8+ {[%clk 0:00:25.7]}
56... Kc6 {[%clk 0:00:11]} 57. Rxd2 {[%clk 0:00:27.1]} 57... Rc1 {[%clk
0:00:12.1]} 58. Ke4 {[%clk 0:00:23.6]} 58... Kb5 {[%clk 0:00:13.4]} 59. Kd4
{[%clk 0:00:24.3]} 59... Ka4 {[%clk 0:00:14]} 60. Re2 {[%clk 0:00:25]} 60... g5
{[%clk 0:00:14.9]} 61. fxg5 {[%clk 0:00:25.7]} 61... fxg5 {[%clk 0:00:16.4]} 62.
Re3 {[%clk 0:00:27.2]} 62... g4 {[%clk 0:00:17.2]} 63. Rc3 {[%clk 0:00:28.1]}
63... Rg1 {[%clk 0:00:18.3]} 64. Rc2 {[%clk 0:00:25.2]} 64... Kb3 {[%clk
0:00:18.3]} 65. Rc3+ {[%clk 0:00:25.3]} 65... Ka4 {[%clk 0:00:19.9]} 66. Kxc4
{[%clk 0:00:24.9]} 66... Rxg2 {[%clk 0:00:20.5]} 67. Rg3 {[%clk 0:00:26.5]}
67... Rxg3 {[%clk 0:00:20.3]} 68. hxg3 {[%clk 0:00:13.3]} 1/2-1/2